bitfinex-derivatives/quotes_BTCF0:USTF0_20250402
["timestamp","ask_amount","ask_price","bid_price","bid_amount"]
[1743614472177,0.3608,87155.0,87136.0,0.1147608]
[1743614472373,0.1201,87149.0,87146.0,0.114745]
[1743614472683,0.2928988,87149.0,87148.0,0.114745]
[1743614472982,0.00068,87149.0,87148.0,0.115545]
[1743614473188,0.24847131,87149.0,87148.0,0.125545]
[1743614473480,0.1154237,87149.0,87148.0,0.125545]
[1743614473683,0.24518639,87149.0,87148.0,0.125545]
[1743614474571,0.24518639,87149.0,87148.0,0.0108]
[1743614474779,0.24518639,87149.0,87148.0,0.01]
[1743614474977,0.24518639,87149.0,87148.0,0.125585]
[1743614476178,0.13044269,87149.0,87148.0,0.125585]
[1743614476384,0.00068,87149.0,87148.0,0.125585]
[1743614476588,0.1147436,87150.0,87149.0,0.1721122]
[1743614476887,0.172111,87152.0,87151.0,0.114741]
[1743614477085,0.172911,87152.0,87151.0,0.135541]
[1743614477279,0.12733359,87152.0,87151.0,0.135541]
[1743614478079,0.24207329,87152.0,87151.0,0.135541]
[1743614478487,0.12733359,87152.0,87151.0,0.135541]
[1743614478686,0.00017209,87157.0,87156.0,0.1147344]
[1743614478886,0.00017209,87157.0,87156.0,0.5263344]
[1743614479881,0.11490519,87157.0,87156.0,0.5263344]
[1743614480090,0.11570519,87157.0,87156.0,0.5263344]
[1743614480283,0.00097209,87157.0,87156.0,0.5263344]
[1743614480483,0.11570519,87157.0,87156.0,0.5263344]
[1743614480680,0.00017209,87157.0,87156.0,0.5263344]
[1743614480880,0.11490519,87157.0,87156.0,0.5263344]
[1743614481085,0.11570519,87157.0,87156.0,0.5263344]
[1743614484090,0.00097209,87157.0,87156.0,0.5263344]
[1743614484286,0.11570519,87157.0,87156.0,0.0508]
[1743614484589,0.11570519,87157.0,87137.0,0.3608]
[1743614484590,0.1147528,87143.0,87131.0,0.1147672]
[1743614484796,0.1721442,87139.0,87131.0,0.0408]
[1743614484993,0.1729442,87139.0,87138.0,0.1147555]
[1743614485182,0.1729442,87139.0,87138.0,0.1255555]
[1743614485386,0.30344586,87139.0,87138.0,0.2504555]
[1743614486397,0.13130166,87139.0,87138.0,0.2504555]
[1743614486896,0.24605846,87139.0,87138.0,0.1357]
[1743614487095,0.24605846,87139.0,87138.0,0.1255581]
[1743614487691,0.13130166,87139.0,87138.0,0.1255581]
[1743614487888,0.24605846,87139.0,87138.0,0.2520581]
[1743614488088,0.24605846,87139.0,87138.0,0.6128581]
[1743614488399,0.24605846,87139.0,87138.0,0.2520581]
[1743614488698,0.24605846,87139.0,87138.0,0.2420581]
[1743614488897,0.13130166,87139.0,87138.0,0.2420581]
[1743614489098,0.24605846,87139.0,87138.0,0.2420581]
[1743614490393,0.13130166,87139.0,87138.0,0.2420581]
[1743614490594,0.24605846,87139.0,87138.0,0.2420581]
[1743614491496,0.24605846,87139.0,87138.0,0.1155581]
[1743614492203,0.24605846,87139.0,87138.0,0.0008]
[1743614492501,0.30343846,87139.0,87138.0,0.1147581]
[1743614492697,0.30343846,87139.0,87138.0,0.0008]
[1743614493004,0.1147595,87137.0,87136.0,0.1147602]
[1743614493188,0.1155595,87137.0,87136.0,0.1255602]
[1743614493388,0.24014623,87137.0,87136.0,0.1255602]
[1743614493894,0.24014623,87137.0,87136.0,0.2522602]
[1743614494500,0.24014623,87137.0,87136.0,0.0108]
[1743614494801,0.1147674,87131.0,87128.0,0.0573853]
[1743614494996,0.1155674,87131.0,87130.0,0.12578079]
[1743614495202,0.23733583,87131.0,87130.0,0.12578079]
[1743614495387,0.12256843,87131.0,87130.0,0.12578079]
[1743614496094,0.23653583,87131.0,87130.0,0.12578079]
[1743614496294,0.23741583,87131.0,87130.0,0.37038079]
[1743614496503,0.12264843,87131.0,87130.0,0.37038079]
[1743614496700,0.12176843,87131.0,87130.0,0.37038079]
[1743614496902,0.12256843,87131.0,87130.0,0.37038079]
[1743614497104,0.0008,87131.0,87130.0,0.37038079]
[1743614497504,0.12820741,87131.0,87130.0,0.37038079]
[1743614498805,0.24297481,87131.0,87130.0,0.13161209]
[1743614499010,0.37127481,87131.0,87130.0,0.01101209]
[1743614499410,0.37127481,87131.0,87130.0,0.12578079]
[1743614499609,0.37127481,87131.0,87130.0,0.24658079]
[1743614499802,0.50337481,87131.0,87130.0,0.24658079]
[1743614500002,0.24297481,87131.0,87130.0,0.24658079]
[1743614500196,0.24297481,87131.0,87130.0,0.37568079]
[1743614500896,0.24297481,87131.0,87130.0,0.13181209]
[1743614501101,0.50337481,87131.0,87130.0,0.24658079]
[1743614501896,0.12820741,87131.0,87130.0,0.24658079]
[1743614502111,0.12740741,87131.0,87130.0,0.24658079]
[1743614502301,0.24301481,87131.0,87130.0,0.36918079]
[1743614502610,0.1156074,87131.0,87130.0,0.24658079]
[1743614502810,0.23639064,87131.0,87130.0,0.24658079]
[1743614503011,0.48769064,87131.0,87130.0,0.24658079]
[1743614503705,0.48769064,87131.0,87130.0,0.13181209]
[1743614503912,0.48769064,87131.0,87130.0,0.01101209]
[1743614504616,0.48769064,87131.0,87130.0,0.12578079]
[1743614505615,0.48769064,87131.0,87130.0,0.25808079]
[1743614509211,0.48769064,87131.0,87130.0,0.14331209]
[1743614510218,0.48769064,87131.0,87130.0,0.25808079]
[1743614510419,0.24262324,87131.0,87130.0,0.38108079]
[1743614510611,0.35739064,87131.0,87130.0,0.38108079]
[1743614512115,0.35739064,87131.0,87130.0,0.25808079]
[1743614512317,0.48169064,87131.0,87130.0,0.25808079]
[1743614513113,0.48169064,87131.0,87130.0,0.14331209]
[1743614513315,0.48169064,87131.0,87130.0,0.25808079]
[1743614514007,0.48169064,87131.0,87130.0,0.38908079]
[1743614516317,0.48169064,87131.0,87130.0,0.25808079]
[1743614519511,0.48169064,87131.0,87130.0,0.01101209]
[1743614519721,0.1147726,87127.0,87126.0,0.20479491]
[1743614519924,0.47617261,87127.0,87126.0,0.20539491]
[1743614520129,1.0673735,87127.0,87126.0,0.20539491]
[1743614521824,0.1147805,87121.0,87118.0,0.00017209]
[1743614522026,0.1155805,87121.0,87118.0,0.00017209]
[1743614522329,0.49991353,87121.0,87118.0,0.00017209]
[1743614522921,0.49991353,87121.0,87120.0,0.27365988]
[1743614523323,0.0573935,87117.0,87080.0,0.74141561]
[1743614523522,0.1147937,87111.0,87110.0,0.34157972]
[1743614523727,0.1156337,87111.0,87110.0,0.34157972]
[1743614523928,0.24793533,87111.0,87110.0,0.34157972]
[1743614524118,0.62123533,87111.0,87110.0,0.34093972]
[1743614524727,0.62123533,87111.0,87102.0,0.0001722]
[1743614524728,0.1148043,87103.0,87102.0,0.0001722]
[1743614524924,0.48795383,87103.0,87102.0,0.0107722]
[1743614525123,0.61457981,87103.0,87102.0,0.1261778]
[1743614525325,0.73373028,87103.0,87102.0,0.1255778]
[1743614525933,0.73373028,87103.0,87102.0,0.2575778]
[1743614526131,0.85653028,87103.0,87102.0,0.2575778]
[1743614526523,0.86789323,87103.0,87102.0,0.1427722]
[1743614526727,0.86789323,87103.0,87102.0,0.0007722]
[1743614528828,0.86789323,87103.0,87102.0,0.0001722]
[1743614530535,0.86789323,87103.0,87102.0,0.0009722]
[1743614531037,0.86789323,87103.0,87102.0,0.0001722]
[1743614532528,0.1148069,87101.0,87100.0,0.1]
[1743614532735,0.1156869,87101.0,87100.0,0.1]
[1743614532938,0.239194,87101.0,87100.0,0.1]
[1743614533426,0.239194,87101.0,87100.0,0.10068]
[1743614535132,0.495794,87101.0,87100.0,0.10068]
[1743614536622,0.495794,87101.0,87094.0,0.204928]
[1743614536623,0.1148148,87095.0,87094.0,0.204928]
[1743614536824,0.4764948,87095.0,87094.0,0.00068]
[1743614537033,0.1148174,87093.0,87092.0,0.0001722]
[1743614537236,0.1156174,87093.0,87092.0,0.0007722]
[1743614537434,0.50102601,87093.0,87092.0,0.0007722]
[1743614538634,0.114824,87088.0,87087.0,0.204928]
[1743614538825,0.1148333,87081.0,87080.0,0.2641]
[1743614539135,0.60579831,87081.0,87080.0,0.2647]
[1743614539338,0.60579831,87081.0,87080.0,0.2044891]
[1743614539537,0.85399831,87081.0,87080.0,0.2044891]
[1743614539726,0.1148372,87078.0,87077.0,0.34093972]
[1743614539928,0.11607721,87078.0,87077.0,0.34153972]
[1743614540136,0.2519395,87078.0,87077.0,0.34153972]
[1743614540636,0.114857,87063.0,87062.0,0.1278]
[1743614540843,0.475657,87063.0,87062.0,0.1884]
[1743614541142,0.61644189,87063.0,87062.0,0.1884]
[1743614541532,0.1148715,87052.0,87051.0,0.1318]
[1743614541732,0.4772715,87052.0,87051.0,0.2318]
[1743614541931,0.59783754,87052.0,87051.0,0.2318]
[1743614542127,0.60525169,87052.0,87051.0,0.3466728]
[1743614542429,0.24445169,87052.0,87051.0,0.3466728]
[1743614542630,0.12798019,87052.0,87051.0,0.4680728]
[1743614543532,0.1295402,87052.0,87051.0,0.4680728]
[1743614543837,0.2444117,87052.0,87051.0,0.3532]
[1743614544733,0.2444117,87052.0,87051.0,0.2214]
[1743614545148,0.3765117,87052.0,87051.0,0.2214]
[1743614545437,0.3765117,87052.0,87051.0,0.1214]
[1743614547247,0.7373117,87052.0,87051.0,0.1214]
[1743614547944,0.74994176,87052.0,87051.0,0.1214]
[1743614548140,0.1148808,87045.0,87044.0,0.1274]
[1743614548345,0.11644081,87045.0,87044.0,0.1974]
[1743614548843,0.11644081,87045.0,87030.0,0.16745]
[1743614548844,0.66025444,87045.0,87030.0,0.11]
[1743614549145,0.1149006,87030.0,87023.0,0.47731561]
[1743614549333,0.2029806,87030.0,87023.0,0.47731561]
[1743614549535,0.37541308,87030.0,87025.0,0.1149068]
[1743614549852,0.37541308,87030.0,87027.0,0.1149037]
[1743614550146,0.1429091,87030.0,87029.0,0.1169019]
[1743614550349,0.27785391,87030.0,87029.0,0.1169019]
[1743614550646,0.15445669,87030.0,87029.0,0.1369019]
[1743614551539,0.26935729,87030.0,87029.0,0.1369019]
[1743614551739,0.26935729,87030.0,87029.0,0.2682019]
[1743614551740,0.63015729,87030.0,87029.0,0.2682019]
[1743614551937,0.63015729,87030.0,87029.0,0.1533]
[1743614552944,0.75275729,87030.0,87029.0,0.1533]
[1743614555647,0.63015729,87030.0,87029.0,0.1533]
[1743614556940,0.26935729,87030.0,87029.0,0.2795]
[1743614557135,0.63015729,87030.0,87029.0,0.2795]
[1743614558348,0.76015729,87030.0,87029.0,0.2795]
[1743614558644,0.77480231,87030.0,87029.0,0.1482]
[1743614559438,0.65990171,87030.0,87000.0,0.1]
[1743614559643,0.1149285,87012.0,87011.0,0.4197071]
[1743614559948,0.1149285,87012.0,87011.0,0.5897071]
[1743614560161,0.23487025,87012.0,87011.0,0.5897071]
[1743614560342,0.25643446,87012.0,87011.0,0.5897071]
[1743614561252,0.14150596,87012.0,87011.0,0.5897071]
[1743614561450,0.25491026,87012.0,87011.0,0.5897071]
[1743614561751,0.25643026,87012.0,87011.0,0.5897071]
[1743614565844,0.25643026,87012.0,87011.0,0.4747843]
[1743614566051,0.25643026,87012.0,87011.0,0.17]
[1743614566253,0.49883026,87012.0,87011.0,0.17]
[1743614567459,0.1149389,87001.0,87000.0,0.1]
[1743614567645,0.1149389,87001.0,87000.0,0.28]
[1743614567843,0.49040442,87001.0,87000.0,0.32386478]
[1743614568055,0.51204863,87001.0,87000.0,0.32386478]
[1743614568856,0.87284863,87001.0,87000.0,0.32386478]
[1743614569642,0.99564863,87001.0,87000.0,0.32386478]
[1743614570054,0.51204863,87001.0,87000.0,0.32386478]
[1743614573959,0.51204863,87001.0,87000.0,0.14386478]
[1743614574160,0.51204863,87001.0,87000.0,0.1]
[1743614575559,0.3057653,86981.0,86980.0,0.02218387]
[1743614575757,0.3057653,86981.0,86974.0,0.04868362]
[1743614575758,0.3057732,86975.0,86974.0,0.04868362]
[1743614576054,0.0129642,86975.0,86974.0,0.0429291]
[1743614576256,0.0129642,86975.0,86968.0,0.57862143]
[1743614576257,0.0574892,86972.0,86968.0,0.57862143]
[1743614576450,0.1149798,86970.0,86969.0,0.29870819]
[1743614576761,0.24849905,86970.0,86969.0,0.29870819]
[1743614577262,0.27730245,86970.0,86969.0,0.29870819]
[1743614578752,0.39780245,86970.0,86969.0,0.29870819]
[1743614578955,0.39780245,86970.0,86969.0,0.31870819]
[1743614579149,0.52960245,86970.0,86969.0,0.31870819]
[1743614579457,0.52960245,86970.0,86969.0,0.19170819]
[1743614579660,0.52960245,86970.0,86969.0,0.17170819]
[1743614579955,0.52960245,86970.0,86969.0,0.04290819]
[1743614580572,0.1150023,86953.0,86952.0,0.2661]
[1743614580755,0.1166023,86953.0,86952.0,0.34900819]
[1743614581059,0.24404359,86953.0,86952.0,0.34900819]
[1743614581252,0.60484359,86953.0,86952.0,0.34900819]
[1743614581449,0.85384359,86953.0,86952.0,0.34900819]
[1743614581653,0.8738878,86953.0,86952.0,0.34900819]
[1743614582259,0.7490878,86953.0,86952.0,0.3061]
[1743614582564,0.7490878,86953.0,86952.0,0.2661]
[1743614583457,0.7490878,86953.0,86952.0,0.1331]
[1743614583660,0.1150076,86949.0,86948.0,0.1313]
[1743614583862,0.1166076,86949.0,86948.0,0.3139]
[1743614584063,0.24589523,86949.0,86948.0,0.3563799]
[1743614584261,0.26593944,86949.0,86948.0,0.0924799]
[1743614584466,0.26593944,86949.0,86948.0,0.0424799]
[1743614584660,0.26593944,86949.0,86935.0,0.3896]
[1743614584661,0.1150235,86937.0,86936.0,0.0424799]
[1743614584963,0.1150235,86937.0,86936.0,0.64150642]
[1743614584964,0.0016,86937.0,86936.0,0.64150642]
[1743614585263,0.1725327,86939.0,86938.0,0.1150221]
[1743614585461,0.30650719,86953.0,86951.0,0.1150036]
[1743614585651,0.42302949,86953.0,86952.0,0.90798522]
[1743614585855,0.30802719,86953.0,86952.0,0.91798522]
[1743614586054,0.00152,86953.0,86952.0,0.91798522]
[1743614586261,0.00731421,86953.0,86952.0,0.91798522]
[1743614586661,0.00731421,86953.0,86952.0,0.92798522]
[1743614586864,0.12231651,86953.0,86952.0,0.92798522]
[1743614587058,0.12231651,86953.0,86952.0,0.56718522]
[1743614587258,0.12383651,86953.0,86952.0,0.56718522]
[1743614587469,0.12383651,86953.0,86952.0,0.55718522]
[1743614588769,0.00883421,86953.0,86952.0,0.91798522]
[1743614589064,0.12231651,86953.0,86952.0,0.91798522]
[1743614589265,0.13439698,86953.0,86952.0,0.91798522]
[1743614589652,0.13439698,86953.0,86952.0,0.44218162]
[1743614589859,0.13591698,86953.0,86952.0,0.44218162]
[1743614590056,0.13591698,86953.0,86952.0,0.05258162]
[1743614590465,0.13591698,86953.0,86952.0,0.16758522]
[1743614590664,0.13591698,86953.0,86952.0,0.1250036]
[1743614591061,0.13591698,86953.0,86952.0,0.3811036]
[1743614591862,0.13591698,86953.0,86952.0,0.6269]
[1743614592168,0.13591698,86953.0,86952.0,0.7419036]
[1743614592366,0.13591698,86953.0,86952.0,0.3811036]
[1743614592762,0.02091468,86953.0,86952.0,0.3811036]
[1743614592966,0.06914302,86975.0,86952.0,0.8069]
[1743614593164,0.1149838,86968.0,86967.0,0.1149827]
[1743614593364,0.0574912,86968.0,86967.0,0.5248827]
[1743614593670,0.1878762,86968.0,86967.0,0.5248827]
[1743614594169,0.18891621,86968.0,86967.0,0.5248827]
[1743614595256,0.45703094,86968.0,86967.0,0.5248827]
[1743614595465,0.45703094,86968.0,86967.0,0.31897667]
[1743614595670,0.45703094,86968.0,86967.0,0.28022]
[1743614595873,1.07713094,86968.0,86967.0,3.291e-05]
[1743614596060,0.1149917,86961.0,86960.0,0.2528]
[1743614596374,0.1149917,86961.0,86960.0,0.398433]
[1743614596375,0.00140001,86961.0,86960.0,0.398433]
[1743614596565,0.12393813,86961.0,86960.0,0.15690616]
[1743614596761,0.23892983,86961.0,86960.0,0.04191316]
[1743614597072,0.1164317,86961.0,86960.0,0.04191316]
[1743614597272,0.2558377,86961.0,86960.0,0.15690616]
[1743614597465,0.1259377,86961.0,86960.0,0.15690616]
[1743614597662,0.39405243,86961.0,86960.0,0.15690616]
[1743614598072,0.50904453,86961.0,86960.0,0.194993]
[1743614598773,0.63894453,86961.0,86960.0,0.315493]
[1743614599859,0.26955473,86961.0,86960.0,0.443393]
[1743614600058,0.00144,86961.0,86960.0,0.443393]
[1743614600265,0.1164317,86961.0,86960.0,0.463393]
[1743614600766,0.1164317,86961.0,86960.0,0.22185522]
[1743614600969,0.1164317,86961.0,86960.0,0.24185522]
[1743614601270,0.3608,86966.0,86960.0,0.24185522]
[1743614601271,0.0574832,86981.0,86960.0,0.75265522]
[1743614601474,0.11514531,86976.0,86975.0,0.1149732]
[1743614601665,0.11514531,86976.0,86975.0,0.1649732]
[1743614602165,0.11514531,86976.0,86975.0,0.05]
[1743614602366,0.24159542,86976.0,86975.0,0.1549732]
[1743614602568,0.36499542,86976.0,86975.0,0.1549732]
[1743614602767,0.36499542,86976.0,86975.0,0.2816732]
[1743614603269,0.11634532,86976.0,86975.0,0.2816732]
[1743614603963,0.23974532,86976.0,86975.0,0.2816732]
[1743614604565,0.23974532,86976.0,86975.0,0.25412139]
[1743614604961,0.00137252,86976.0,86975.0,0.25472139]
[1743614605167,2e-08,86976.0,86975.0,0.76552139]
[1743614605472,0.33105744,86992.0,86985.0,0.11496]
[1743614605775,0.24744854,86986.0,86985.0,0.51644]
[1743614606162,0.24022428,86986.0,86985.0,0.51644]
[1743614606364,0.25948217,86986.0,86985.0,0.51644]
[1743614607163,0.02009789,86986.0,86985.0,0.51644]
[1743614607869,0.01925789,86986.0,86985.0,0.64784]
[1743614608463,0.00740688,86986.0,86985.0,0.64784]
[1743614609173,0.01925789,86986.0,86985.0,0.64784]
[1743614609376,0.02009789,86986.0,86985.0,0.64784]
[1743614609667,0.14399789,86986.0,86985.0,0.64784]
[1743614610080,0.13214688,86986.0,86985.0,0.64784]
[1743614613863,0.00824688,86986.0,86985.0,0.64784]
[1743614614362,0.73123347,86986.0,86985.0,0.03068]
[1743614614566,0.97993347,86986.0,86985.0,0.14496]
[1743614615469,0.61913347,86986.0,86985.0,0.14496]
[1743614615670,0.1306926,86986.0,86985.0,0.15556]
[1743614615874,0.1306926,86986.0,86985.0,0.64276]
[1743614616075,0.13649924,86988.0,86987.0,0.1149574]
[1743614616270,0.13713924,86988.0,86987.0,0.1755974]
[1743614616570,0.13649924,86988.0,86987.0,0.3019974]
[1743614617174,0.125,86997.0,86996.0,0.1149455]
[1743614617370,0.1284,87008.0,87007.0,0.1149309]
[1743614617565,0.2440506,87008.0,87007.0,0.1255709]
[1743614618070,0.31330548,87008.0,87007.0,0.01]
[1743614618275,0.31330548,87008.0,87007.0,0.0106]
[1743614618574,0.3015154,87008.0,87007.0,0.01]
[1743614618972,0.42335879,87008.0,87007.0,0.01]
[1743614619569,0.43449581,87008.0,87007.0,0.01]
[1743614619769,0.56059581,87008.0,87007.0,0.01]
[1743614619974,0.2298891,87002.0,87000.0,0.0574681]
[1743614620177,0.1233,87001.0,87000.0,0.0874681]
[1743614620367,0.25172,87001.0,87000.0,0.0881881]
[1743614620574,0.25172,87001.0,87000.0,0.0874681]
[1743614620765,0.25172,87001.0,87000.0,0.0880681]
[1743614621076,0.3666589,87001.0,87000.0,0.0874681]
[1743614621577,0.3666589,87001.0,87000.0,0.0880681]
[1743614621876,0.3666589,87001.0,87000.0,0.0874681]
[1743614622068,0.37851618,87001.0,87000.0,0.0874681]
[1743614622261,0.26357728,87001.0,87000.0,0.0981481]
[1743614622470,0.26357728,87001.0,87000.0,0.2284481]
[1743614622471,0.14027728,87001.0,87000.0,0.2284481]
[1743614622679,0.1277,87001.0,87000.0,0.3552481]
[1743614622871,0.12842,87001.0,87000.0,0.3552481]
[1743614623367,0.12842,87001.0,87000.0,0.4820481]
[1743614623566,0.2433589,87001.0,87000.0,0.0981481]
[1743614623768,0.2992358,87001.0,87000.0,0.0981481]
[1743614623965,0.4300358,87001.0,87000.0,0.0981481]
[1743614626080,0.2992358,87001.0,87000.0,0.0981481]
[1743614626270,0.2992358,87001.0,87000.0,0.3527481]
[1743614627685,0.4210358,87001.0,87000.0,0.2242481]
[1743614627877,0.4210358,87001.0,87000.0,0.0981481]
[1743614628077,0.43287019,87001.0,87000.0,0.0981481]
[1743614628781,0.43287019,87001.0,87000.0,0.2242481]
[1743614628966,0.44033877,87001.0,87000.0,0.3527481]
[1743614629372,0.33988997,87001.0,87000.0,0.3527481]
[1743614629674,0.33989605,87001.0,87000.0,0.3527481]
[1743614631383,0.45483495,87001.0,87000.0,0.3527481]
[1743614632373,0.39895805,87001.0,87000.0,0.3527481]
[1743614633285,0.39896237,87001.0,87000.0,0.3527481]
[1743614634577,0.16222347,87001.0,87000.0,0.3527481]
[1743614634783,0.16222347,87001.0,87000.0,0.4840481]
[1743614635177,0.16232898,87001.0,87000.0,0.4840481]
[1743614635372,0.14772297,87001.0,87000.0,0.4840481]
[1743614635578,0.13588858,87001.0,87000.0,0.4840481]
[1743614636186,0.20577076,87010.0,87009.0,0.1149283]
[1743614636484,0.20649076,87010.0,87009.0,0.6864483]
[1743614636685,0.1242,87015.0,87014.0,0.1149217]
[1743614636989,0.2397604,87015.0,87014.0,0.2986617]
[1743614637185,0.2397604,87015.0,87014.0,0.1655617]
[1743614637385,0.12484,87015.0,87014.0,0.1655617]
[1743614637691,0.36013716,87015.0,87014.0,0.0030161]
[1743614637872,0.1149494,86993.0,86977.0,0.3608]
[1743614638079,0.4764694,86993.0,86992.0,0.04017241]
[1743614638277,0.85004616,86993.0,86992.0,0.13512311]
[1743614638479,0.73509676,86993.0,86984.0,0.00848892]
[1743614638781,0.47576,86985.0,86984.0,0.0306]
[1743614638981,0.47576,86985.0,86984.0,0.03]
[1743614638982,0.47652,86985.0,86984.0,0.03]
[1743614639178,0.59863079,86985.0,86984.0,0.1449613]
[1743614639479,0.59863079,86985.0,86984.0,0.03068]
[1743614639677,0.59863079,86985.0,86984.0,0.03]
[1743614639886,0.85093079,86985.0,86984.0,0.03]
[1743614640581,0.85093079,86985.0,86984.0,0.1449613]
[1743614640582,0.25306,86985.0,86984.0,0.1449613]
[1743614640787,0.25306,86985.0,86984.0,0.1455613]
[1743614640788,0.36802,86985.0,86984.0,0.1455613]
[1743614641287,0.36802,86985.0,86984.0,0.0306]
[1743614641488,0.13036,86985.0,86984.0,0.1455613]
[1743614642278,0.13036,86985.0,86984.0,0.3968613]
[1743614642480,0.24532,86985.0,86984.0,0.3968613]
[1743614643381,0.24532,86985.0,86984.0,0.0306]
[1743614643585,0.36939118,86985.0,86984.0,0.03]
[1743614643787,0.42527906,86985.0,86984.0,0.03]
[1743614644382,0.42527906,86985.0,86984.0,0.1449613]
[1743614644680,0.30120788,86985.0,86984.0,0.1449613]
[1743614644885,0.30120788,86985.0,86984.0,0.1455613]
[1743614645086,0.30120788,86985.0,86984.0,0.1555613]
[1743614646188,0.30120788,86985.0,86984.0,0.1549613]
[1743614646485,0.30120788,86985.0,86984.0,0.1555613]
[1743614647791,0.30120788,86985.0,86984.0,0.1455613]
[1743614648592,0.30825524,86985.0,86984.0,0.1455613]
[1743614649190,0.30825524,86985.0,86984.0,0.4030613]
[1743614649390,0.19329524,86985.0,86984.0,0.4030613]
[1743614649592,0.20638321,86991.0,86990.0,0.1149534]
[1743614649898,0.20638321,86991.0,86990.0,0.03068]
[1743614649899,0.32201531,86991.0,86990.0,0.03068]
[1743614650085,0.44687182,86991.0,86990.0,0.03068]
[1743614650488,0.70037182,86991.0,86990.0,0.03]
[1743614650798,0.1724532,86980.0,86979.0,0.114967]
[1743614650992,0.1724532,86980.0,86979.0,0.154967]
[1743614651193,0.1731732,86980.0,86979.0,0.155687]
[1743614651584,0.00072,86980.0,86979.0,0.155687]
[1743614651900,0.1156866,86980.0,86979.0,0.155687]
[1743614652196,0.1156866,86980.0,86979.0,0.402287]
[1743614652496,0.00072,86980.0,86979.0,0.402287]
[1743614652890,0.2468626,86983.0,86982.0,0.114964]
[1743614653089,0.2475426,86983.0,86982.0,0.04068]
[1743614653485,0.13258,86983.0,86982.0,0.155644]
[1743614653690,0.2475426,86983.0,86982.0,0.406244]
[1743614653992,0.2475426,86983.0,86982.0,0.276244]
[1743614654299,0.3696426,86983.0,86982.0,0.276244]
[1743614655902,0.3696426,86983.0,86982.0,0.04068]
[1743614656103,0.3696426,86983.0,86982.0,0.04]
[1743614656300,0.3696426,86983.0,86982.0,0.04072]
[1743614656700,0.3696426,86983.0,86982.0,0.155684]
[1743614657798,0.13258,86983.0,86982.0,0.155684]
[1743614658001,0.13258,86983.0,86982.0,0.402984]
[1743614658399,0.2475426,86983.0,86982.0,0.402984]
[1743614659592,0.00068,86983.0,86982.0,0.402984]
[1743614659793,0.00068,86983.0,86982.0,0.773784]
[1743614660009,0.52344902,87004.0,86992.0,0.1149507]
[1743614660192,0.00105242,86993.0,86992.0,0.7166307]
[1743614660392,0.52344902,87004.0,86998.0,0.1149428]
[1743614660599,0.52344902,87004.0,87003.0,0.1149362]
[1743614660803,0.52344902,87004.0,87003.0,0.1664962]
[1743614661205,0.52344902,87004.0,87003.0,0.4218962]
[1743614664201,0.63838392,87004.0,87003.0,0.05156]
[1743614664400,0.63838392,87004.0,87003.0,0.04]
[1743614664608,0.77118392,87004.0,87003.0,0.04]
[1743614664807,0.2477349,87004.0,87003.0,0.04]
[1743614665004,0.1328,87004.0,87003.0,0.1564962]
[1743614665509,0.1328,87004.0,87003.0,0.4151962]
[1743614666506,0.2477349,87004.0,87003.0,0.4151962]
[1743614667008,0.3608,87007.0,87003.0,0.30026]
[1743614667212,0.3608,87007.0,87006.0,0.1149323]
[1743614667403,0.3608,87007.0,87006.0,0.2364523]
[1743614667603,0.3608,87007.0,87006.0,0.4855523]
[1743614667804,0.1232,87011.0,87010.0,0.114927]
[1743614668004,0.1232,87011.0,87010.0,0.156447]
[1743614668204,0.2381256,87011.0,87010.0,0.405547]
[1743614668404,0.1232,87011.0,87010.0,0.405547]
[1743614668601,0.59405199,87043.0,87025.0,0.1149072]
[1743614668805,0.6005058,87026.0,87025.0,0.1264272]
[1743614669119,0.73301809,87026.0,87025.0,0.1264272]
[1743614669314,0.74435542,87026.0,87025.0,0.1264272]
[1743614670419,0.98525542,87026.0,87025.0,0.1249072]
[1743614670617,0.98525542,87026.0,87025.0,0.01]
[1743614670912,0.1723739,87020.0,87019.0,0.1149138]
[1743614671111,0.1723739,87020.0,87019.0,0.1449138]
[1743614671306,0.29337491,87020.0,87019.0,0.1449138]
[1743614671715,0.29337491,87020.0,87019.0,0.15340604]
[1743614672216,0.30034375,87020.0,87019.0,0.15340604]
[1743614675415,0.1149164,87018.0,87017.0,0.00017241]
[1743614675714,0.24288485,87020.0,87010.0,0.1723892]
[1743614675715,0.1149283,87011.0,87010.0,0.1723892]
[1743614675920,0.4757283,87011.0,87010.0,0.21254731]
[1743614676222,0.60888687,87011.0,87010.0,0.21254731]
[1743614676719,0.86325571,87011.0,87010.0,0.21254731]
[1743614677321,0.86325571,87011.0,87010.0,0.04015811]
[1743614677620,0.86325571,87011.0,87010.0,0.03]
[1743614679725,0.36929714,87011.0,87010.0,0.144927]
[1743614679924,0.36929714,87011.0,87010.0,0.268127]
[1743614680227,0.36929714,87011.0,87010.0,0.269647]
[1743614681018,0.25436884,87011.0,87010.0,0.269647]
[1743614681214,0.13046884,87011.0,87010.0,0.395347]
[1743614682013,0.24539444,87011.0,87010.0,0.395347]
[1743614682220,0.13046884,87011.0,87010.0,0.395347]
[1743614682725,0.13046884,87011.0,87010.0,1.19234059]
[1743614682923,0.3608,87023.0,87010.0,1.19234059]
[1743614682924,0.3608,87023.0,87017.0,0.1149177]
[1743614683115,0.1149154,87019.0,87017.0,0.3564377]
[1743614683319,0.32083535,87018.0,87017.0,0.4821377]
[1743614683520,0.45303535,87018.0,87017.0,0.4821377]
[1743614684030,0.45303535,87018.0,87017.0,0.24152]
[1743614684224,0.57973535,87018.0,87017.0,0.3564377]
[1743614684922,0.3738164,87018.0,87017.0,0.3564377]
[1743614685432,0.3738164,87018.0,87017.0,0.4796377]
[1743614685833,0.3738164,87018.0,87017.0,0.6127377]
[1743614686226,0.2589,87018.0,87017.0,0.6127377]
[1743614686730,0.3738164,87018.0,87017.0,0.6127377]
[1743614687133,0.3738164,87018.0,87017.0,0.24152]
[1743614687436,0.1149349,87004.0,87003.0,0.3708]
[1743614687739,0.1149349,87004.0,87003.0,0.7067762]
[1743614687933,0.3589349,87004.0,87003.0,0.7067762]
[1743614688528,0.1217,87004.0,87003.0,0.71541677]
[1743614688724,0.1217,87004.0,87003.0,0.96671677]
[1743614689230,0.2366349,87004.0,87003.0,0.96671677]
[1743614689636,0.3589349,87004.0,87003.0,0.96671677]
[1743614690337,0.3596149,87004.0,87003.0,0.96671677]
[1743614692739,0.12238,87004.0,87003.0,0.96671677]
[1743614693038,0.1217,87004.0,87003.0,0.96671677]
[1743614693333,0.12278,87004.0,87003.0,0.96671677]
[1743614693727,0.2377149,87004.0,87003.0,0.96671677]
[1743614694939,0.12278,87004.0,87003.0,0.96671677]
[1743614695241,0.20591895,87011.0,87010.0,0.114927]
[1743614695436,0.20651896,87011.0,87010.0,0.345967]
[1743614695739,0.20651896,87011.0,87010.0,0.603767]
[1743614695924,0.33651896,87011.0,87010.0,0.603767]